[Event "Baku Open 2024"]
[Site "Baku"]
[Date "2024.07.05"]
[Round "7.6"]
[White "Zverev, Lev"]
[Black "Muradli, Mahammad"]
[Result "1-0"]
[ECO "B90"]
[WhiteElo "2416"]
[BlackElo "2575"]
[Annotator "TA"]
[PlyCount "83"]
[EventDate "2024.06.29"]
[EventType "swiss"]
[EventCountry "AZE"]
[SourceTitle "playchess.com"]
[Source "ChessBase"]
[SourceQuality "1"]
[TimeControl "5400+30"]

{[%evp 15,83,14,41,31,31,23,22,25,32,22,33,39,41,19,31,39,41,28,46,31,85,0,-10,-25,0,0,0,-15,20,0,0,0,7,11,53,-56,-46,-44,-56,-313,-129,-159,0,18,39,44,36,8,101,95,111,102,105,107,186,187,184,172,381,395,420,432,376,337,318,317,507,499,470,463]} 1. e4 {[%emt 0:04:12]} c5 {[%emt 0:06:18]} 2. Nf3 {[%emt 0:00:05]} d6 {[%emt 0:00:10]} 3. d4 {[%emt 0:00:07]} cxd4 {[%emt 0:00:05]} 4. Nxd4 {[%emt 0:00:06]} Nf6 {[%emt 0:00:21]} 5. Nc3 {[%emt 0:00:06]} a6 {[%emt 0:00:07]} 6. Be3 {[%emt 0:00:07]} e5 {[%emt 0:00:23]} 7. Nb3 {[%emt 0:00:06]} Be6 {[%emt 0:00:27]} 8. f3 {[%emt 0:00:07]} h5 {[%emt 0:04:19]} 9. Nd5 {[%emt 0:00:12]} Bxd5 {[%emt 0:00:06]} 10. exd5 {[%emt 0:00:06]} Nbd7 {[%emt 0:00:06]} 11. Qd2 {[%emt 0:00:22] The position is equal.} g6 {[%emt 0:00:18]} 12. O-O-O {[%emt 0:00:17]} Qc7 {[%emt 0:00:14]} 13. Kb1 {[%emt 0:00:32]} Bg7 {[%emt 0:00:04]} 14. Rg1 {[%emt 0:00:16]} Nb6 {[%emt 0:20:24]} 15. Qa5 {[%emt 0:10:46]} Rc8 {[%emt 0:01:06]} 16. c3 {[%emt 0:00:36] Active counter play!} Nbd7 {[%emt 0:04:39]} 17. Qb4 {[%emt 0:05:21]} b5 {[%emt 0:11:15]} (17... Bh6 $14 18. Bf2 (18. Bxh6 Rxh6 19. f4 Kf8 $16) 18... b5) 18. Na5 {[%emt 0:04:10]} (18. Qa3 $16) 18... O-O $11 {[%emt 0:07:37]} 19. Nc6 {[%emt 0:05:52]} Nb6 {[%emt 0:08:24]} 20. Bxb6 {[%emt 0:02:22]} Qxb6 {[%emt 0:00:52]} 21. Bc4 $1 {[%emt 0:00:10][%cal Ob4d6]} Qc7 {[%emt 0:11:13]} 22. Be2 {[%emt 0:04:25]} Rfe8 {[%emt 0:01:33]} 23. a4 {[%emt 0:02:26]} bxa4 {[%emt 0:04:13][%cal Of6d5]} 24. Bxa6 {[%emt 0:05:51]} Rb8 {[%emt 0:00:32]} (24... Nxd5 {simplifies} 25. Rxd5 Qxc6 26. Qb5 Qxb5 27. Bxb5 Re7) 25. Qxa4 {[%emt 0:06:11] [#]} (25. Nxb8 $14 Rxb8 26. Bb5) 25... Nxd5 $1 $15 {[%emt 0:08:45]} 26. Nxb8 {[%emt 0:06:44]} Rxb8 {[%emt 0:00:54]} 27. Bb5 $2 {[%emt 0:03:46][%mdl 8192]} ({White must play} 27. Rxd5 $15 Qb6 (27... Qxc3 $2 28. Qe8+ Rxe8 29. bxc3 $18) 28. Qb5 Qxg1+ 29. Qf1 Qxh2 30. Qe2) 27... Qc5 {[%emt 0:03:46]} (27... Nxc3+ $1 $19 {has better winning chances.} 28. bxc3 Qc5) 28. c4 $17 {[%emt 0:00:17][%cal Oa4a3] [#]} Ne3 $2 {[%emt 0:00:01]} ({Better is} 28... Nb4 $1 $17 {aiming for ...d5.} 29. Rge1 d5) 29. Qa3 $1 $11 {[%emt 0:01:44] Black must now prevent Qxc5.} Qxa3 {[%emt 0:05:13]} 30. bxa3 {[%emt 0:00:19]} d5 {[%emt 0:01:04]} 31. Rd3 {[%emt 0:08:30]} (31. a4 $5 Nxd1 (31... dxc4 32. Rd7 $16) 32. Rxd1 dxc4 33. Kc2 $11) 31... d4 {[%emt 0:00:57]} (31... Nxc4 $11 32. a4 (32. Rxd5 $2 Nxa3+ 33. Kc1 Nxb5 $19) 32... e4 33. fxe4 (33. Rxd5 exf3 34. gxf3 Nb6 $11) 33... dxe4) 32. a4 $16 {[%emt 0:07:20]} Bf8 {[%emt 0:00:31] [#]} 33. c5 $1 {[%emt 0:01:45]} Bxc5 {[%emt 0:00:23]} 34. Rc1 $36 {[%emt 0:00:28][%mdl 2048] White is on the roll.} Bb6 {[%emt 0:00:01]} (34... Bb4 $16) 35. Rb3 $18 {[%emt 0:00:32] Bd3 is the strong threat.} Ba5 {[%emt 0:00:45][%cal Oa5c3]} (35... Nxg2 $2 36. Bf1 Nh4 37. a5 Bxa5 38. Rxb8+ $18) 36. Rc5 {[%emt 0:00:19]} Nxg2 $2 {[%emt 0:00:52]} (36... Rb7 {might work better.} 37. Rxe5 Kg7) 37. Bc4 {[%emt 0:00:28]} (37. Rxe5 Ne3 $14) 37... Ra8 {[%emt 0:00:28]} 38. Rb7 {[%emt 0:02:05]} (38. Rxe5 Ra7 $16) 38... Kg7 {[%emt 0:00:01]} 39. Bxf7 {[%emt 0:01:30]} ({Resist} 39. Rxf7+ Kh6 40. Bd5 (40. Rxe5 Bc3 $18) 40... Ra6 $18) 39... Kh6 {[%emt 0:00:49]} 40. Bd5 {[%emt 0:01:51]} d3 {[%emt 0:00:31]} (40... Ra6 $142 41. Bg8 Ra8 42. Rxe5 Rxg8) 41. Rb2 {[%emt 0:00:39][%csl LRa8,LRg2]} d2 {[%emt 0:00:42]} 42. Rxd2 {[%emt 0:00:14] White used his chance.   Weighted Error Value: White=0.19 (very precise) /Black=0.39.  Loses game:     	White=1     	---        Missed win:     	---       	Black=1      Mistake:       	White=2     	Black=6      Inaccurate:     	White=1     	Black=2      OK:         	White=12    	Black=10     Best:        	White=5     	Black=1      Strong:       	White=2     	---        Brilliant:      	White=1     	Black=1} (42. Bxa8 $2 {too greedy.} d1=Q+ (42... d1=R+ $2 43. Ka2 $18) 43. Rc1 Qd3+ (43... Qxa4 44. Rxg2 Qb3+ 45. Rb2 $17) 44. Ka2 Nf4 $19) 1-0

[Event "Baku Open 2024"]
[Site "Baku"]
[Date "2024.07.05"]
[Round "7.7"]
[White "Talibov, Shiroghlan"]
[Black "Samadov, Read"]
[Result "1/2-1/2"]
[ECO "B81"]
[WhiteElo "2361"]
[BlackElo "2503"]
[Annotator "TA"]
[PlyCount "157"]
[EventDate "2024.06.29"]
[EventType "swiss"]
[EventCountry "AZE"]
[SourceTitle "playchess.com"]
[Source "ChessBase"]
[SourceQuality "1"]
[TimeControl "5400+30"]

{[%evp 14,157,30,16,28,0,44,0,63,-20,-15,-10,4,-20,-8,-20,-23,-29,-39,-58,-46,-64,-50,-70,-35,-86,-94,-81,-90,-106,-102,-97,-62,-55,-55,-111,-64,-70,-74,-75,-73,-82,-54,-94,-75,-77,-56,-79,-67,-98,-53,-89,-100,-86,-97,-87,-87,-96,-89,-182,-175,-177,-161,-433,-190,-211,-212,-229,-206,-249,-215,-297,-270,-307,-303,-265,-188,-186,-169,-176,-173,-130,-151,-256,-254,-278,-291,-292,-270,-627,-153,-153,-129,-129,-104,-129,0,-129,-129,-129,-114,-114,-107,-114,-108,-107,-107,-107,-107,-107,-108,-122,-114,-106,-76,-110,-95,-122,0,-122,0,-101,-81,-97,-59,-81,-81,-82,-18,-82,-82,-82,-82,-82,-82,-82,-82,-82,-64,-64,-64,-64,-64,-64,-64,-64]} 1. e4 {[%emt 0:00:01]} c5 {[%emt 0:00:07]} 2. Nf3 {[%emt 0:00:04]} d6 {[%emt 0:00:06]} 3. d4 {[%emt 0:00:03]} cxd4 {[%emt 0:00:08]} 4. Nxd4 {[%emt 0:00:04]} Nf6 {[%emt 0:00:07]} 5. Nc3 {[%emt 0:00:23]} a6 {[%emt 0:00:06]} 6. h3 {[%emt 0:00:27]} e6 {[%emt 0:01:29]} 7. g4 {[%emt 0:02:10]} h6 {[%emt 0:00:44]} 8. Bg2 {[%emt 0:00:34]} Be7 {[%emt 0:00:37]} 9. b3 {[%emt 0:02:51]} Nc6 {[%emt 0:04:40]} 10. Bb2 {[%emt 0:03:13]} O-O {[%emt 0:06:06]} ({Black should play} 10... Bd7 $11) 11. O-O {[%emt 0:06:46]} (11. Nxc6 $14 bxc6 12. h4) 11... Nxd4 $11 {[%emt 0:03:48]} 12. Qxd4 {[%emt 0:00:10]} e5 {[%emt 0:00:27]} 13. Qd3 {[%emt 0:01:21]} Be6 {[%emt 0:03:35]} 14. a4 {[%emt 0:03:59]} Rc8 {[%emt 0:07:03]} 15. Ne2 {[%emt 0:08:24]} h5 {[%emt 0:12:03]} 16. g5 {[%emt 0:04:21]} Nd7 {[%emt 0:01:47]} 17. f4 {[%emt 0:04:40]} exf4 {[%emt 0:03:36]} 18. Nxf4 {[%emt 0:00:16]} Ne5 {[%emt 0:02:46]} 19. Qe2 {[%emt 0:13:22]} (19. Bxe5 $15 dxe5 20. Qxd8 Rcxd8 21. Nxe6 fxe6 22. h4) 19... Bxg5 $17 {[%emt 0:09:54]} 20. Nxe6 {[%emt 0:11:07]} fxe6 {[%emt 0:00:06]} 21. Qxh5 {[%emt 0:00:32]} Rxc2 {[%emt 0:06:07]} 22. Bxe5 {[%emt 0:01:24] Threatens to win with Rxf8+.} dxe5 {[%emt 0:05:39]} 23. Rxf8+ {[%emt 0:02:53]} Kxf8 {[%emt 0:00:08]} 24. Rf1+ {[%emt 0:02:18]} ({Better is} 24. Qh8+ $15 Kf7 25. Rf1+ Kg6 26. Qxd8 Bxd8 27. Bf3) 24... Bf6 {[%emt 0:01:28]} ({Black should try} 24... Kg8 $17 25. Qf7+ Kh7 26. Qh5+ Bh6 27. Qxe5 Qb6+ 28. Kh1 Qxb3) 25. Qxe5 {[%emt 0:01:08]} Ke7 {[%emt 0:00:58] White is weak on the dark squares} 26. Qf4 {[%emt 0:02:08] e5 would now be deadly.} Qd4+ {[%emt 0:02:33]} 27. Kh1 {[%emt 0:00:01]} Qe5 {[%emt 0:03:30]} (27... Rc3 {simplifies} 28. e5 Qxf4 29. Rxf4 Bxe5 30. Rf3 Rc2) 28. Qg4 {[%emt 0:04:00]} Rc3 {[%emt 0:01:26]} 29. Rf3 {[%emt 0:01:03]} Rc5 {[%emt 0:00:48]} 30. Rf1 {[%emt 0:02:43]} a5 {[%emt 0:02:49]} 31. Qd1 {[%emt 0:04:03]} Qg3 {[%emt 0:01:13] Strongly threatening ...Be5.} 32. Rf3 {[%emt 0:02:02]} Qc7 {[%emt 0:00:56] White must now prevent ...Rc1.} 33. Qd3 {[%emt 0:04:05]} Rc1+ {[%emt 0:01:35]} 34. Rf1 {[%emt 0:00:23]} Rc3 {[%emt 0:01:00]} 35. Qb5 {[%emt 0:01:12]} b6 {[%emt 0:03:04]} 36. Rd1 {[%emt 0:00:47]} (36. e5 $17 Bxe5 37. b4) 36... Be5 $19 {[%emt 0:00:38]} 37. Rf1 {[%emt 0:01:49]} Rg3 $1 {[%emt 0:01:59][%cal Oc7c2]} 38. Qa6 $2 {[%emt 0:05:18]} (38. Qe2 {only move.}) 38... Rxb3 {[%emt 0:01:19]} (38... Qc3 $142 {( -> ...Rxh3+)} 39. Rf2 Rd3 (39... Qxb3 $2 {too greedy.} 40. Qa7+ Kd6 41. Qb8+ Kc6 42. Qxe5 $18)) 39. Qa8 {[%emt 0:01:12]} Qb8 {[%emt 0:00:48]} 40. Qa6 {[%emt 0:00:40]} Rc3 {[%emt 0:01:58]} 41. Rb1 {[%emt 0:00:16]} Qc7 {[%emt 0:00:57]} 42. Rd1 {[%emt 0:00:29]} Rg3 {[%emt 0:01:33]} 43. Qe2 {[%emt 0:00:58] Prevents Qc2.} Qc3 {[%emt 0:01:49]} 44. Qh5 {[%emt 0:01:32]} Re3 {[%emt 0:04:01]} 45. Qg5+ {[%emt 0:02:12] [#]} Bf6 $1 {[%emt 0:00:11]} 46. Qf4 {[%emt 0:00:42]} Re1+ {[%emt 0:00:46]} 47. Rxe1 {[%emt 0:00:01]} Qxe1+ {[%emt 0:00:01][%mdl 4096] Endgame. KQB-KQB} 48. Qf1 {[%emt 0:02:50]} (48. Bf1 $17) 48... Qb4 {[%emt 0:00:53]} 49. e5 {[%emt 0:01:22]} Bxe5 {[%emt 0:00:05]} 50. Bc6 {[%emt 0:00:02]} Qd2 {[%emt 0:00:56] Wards off Qd3} 51. Qg1 {[%emt 0:00:32] [#] Wards off Qh2+} (51. Bg2) 51... Qf4 $2 {[%emt 0:00:52]} (51... Qc3 $1 $19 {[%cal Rc3h3] has better winning chances.} 52. Bg2 Bd4) 52. Bb5 $17 {[%emt 0:00:32]} g5 {[%emt 0:01:15]} 53. Qg2 {[%emt 0:00:25]} Qc1+ {[%emt 0:01:03]} 54. Qg1 {[%emt 0:00:01]} Qf4 {[%emt 0:00:36]} 55. Qg2 $1 {[%emt 0:00:02]} Qe3 {[%emt 0:00:35]} 56. Qg4 {[%emt 0:01:24]} Bf4 {[%emt 0:01:00]} 57. Kg2 {[%emt 0:00:43]} Qe1 {[%emt 0:00:55]} 58. Qf3 {[%emt 0:00:18]} Kf6 {[%emt 0:00:23]} 59. Qd3 {[%emt 0:00:33]} Ke5 {[%emt 0:02:19]} 60. Kf3 {[%emt 0:00:57]} Qg3+ {[%emt 0:00:13]} 61. Ke2 {[%emt 0:00:01]} Qg2+ {[%emt 0:00:07]} 62. Kd1 {[%emt 0:00:04]} Qg1+ {[%emt 0:00:17]} 63. Ke2 {[%emt 0:00:10]} Qc1 {[%emt 0:00:35]} 64. Kf3 {[%emt 0:02:27]} Qh1+ {[%emt 0:00:07]} 65. Ke2 {[%emt 0:00:00]} Qg2+ {[%emt 0:00:40]} 66. Kd1 {[%emt 0:00:00]} Qg1+ {[%emt 0:00:16]} 67. Ke2 $1 {[%emt 0:00:00]} Qc5 {[%emt 0:00:19]} 68. Kf3 {[%emt 0:00:00][%cal Oh3h4]} Qc7 {[%emt 0:01:45]} 69. Qe4+ {[%emt 0:00:00]} Kf6 {[%emt 0:00:01]} 70. h4 {[%emt 0:00:07]} Qe5 {[%emt 0:00:47]} (70... Qc5 $17) 71. hxg5+ {[%emt 0:00:48]} (71. Qxe5+ $1 $11 {keeps the balance.} Kxe5 72. h5) 71... Bxg5 {[%emt 0:00:08]} 72. Qxe5+ {[%emt 0:00:14]} Kxe5 $11 {[%emt 0:00:01] KB-KB} 73. Bc4 {[%emt 0:00:11]} Bh6 {[%emt 0:00:34]} 74. Ke2 {[%emt 0:01:05]} Kf5 {[%emt 0:00:06]} 75. Kf3 {[%emt 0:00:11]} e5 {[%emt 0:00:05]} 76. Bd3+ {[%emt 0:00:05] Black is slightly better.} Ke6 {[%emt 0:00:12]} 77. Ke4 {[%emt 0:00:03]} Kd6 {[%emt 0:00:02]} 78. Bb5 {[%emt 0:00:04]} Bg7 {[%emt 0:00:04]} 79. Be8 {[%emt 0:00:03] Black had all chances to win.   Weighted Error Value: White=0.35/Black=0.25 (precise) .  Missed win:     	---       	Black=1      Mistake:       	White=8     	Black=4      Inaccurate:     	White=7     	Black=6      OK:         	White=20    	Black=27     Best:        	White=9     	Black=1      Strong:       	White=2     	Black=2} 1/2-1/2

[Event "Baku Open 2024"]
[Site "Baku"]
[Date "2024.07.05"]
[Round "7.8"]
[White "Ibrahimli, Murad"]
[Black "Asadli, Vugar"]
[Result "1/2-1/2"]
[ECO "A21"]
[WhiteElo "2400"]
[BlackElo "2560"]
[Annotator "TA"]
[PlyCount "152"]
[EventDate "2024.06.29"]
[EventType "swiss"]
[EventCountry "AZE"]
[SourceTitle "playchess.com"]
[Source "ChessBase"]
[SourceQuality "1"]
[TimeControl "5400+30"]

{[%evp 9,152,9,16,9,5,-2,7,11,16,11,9,-9,15,20,70,54,77,55,51,28,17,31,176,80,99,89,120,136,145,141,154,93,87,81,97,98,114,64,89,66,98,61,57,44,81,83,84,53,83,75,84,73,81,78,75,71,67,64,71,87,78,49,59,49,45,45,44,44,70,22,28,25,20,13,15,13,22,13,19,11,54,11,20,16,32,37,37,41,51,0,0,0,0,0,16,20,15,0,0,0,0,0,0,0,0,0,0,0,0,0,0,0,0,0,0,0,0,0,51,51,50,0,55,0,0,0,0,0,0,0,0,0,0,0,0,0,0,0,0,0,0,0,0,0,0]} 1. c4 {[%emt 0:01:54]} e5 {[%emt 0:01:23]} 2. g3 {[%emt 0:00:53]} d6 {[%emt 0:01:01]} 3. Nc3 {[%emt 0:01:56]} f5 {[%emt 0:00:54]} 4. d4 {[%emt 0:03:09]} Be7 {[%emt 0:03:25]} 5. dxe5 {[%emt 0:02:29]} dxe5 {[%emt 0:00:43]} 6. Qxd8+ {[%emt 0:00:03]} Bxd8 {[%emt 0:00:29]} 7. Nf3 {[%emt 0:00:51]} Nc6 {[%emt 0:09:28]} 8. Be3 {[%emt 0:14:20]} Be6 {[%emt 0:13:18]} 9. Bh3 {[%emt 0:01:37]} h6 {[%emt 0:04:24][%cal Og8f6]} 10. O-O-O {[%emt 0:10:32]} g5 {[%emt 0:14:22][%cal Og5g4] [#] Strongly threatening ...g4!} 11. Nd2 {[%emt 0:03:58]} g4 {[%emt 0:01:18]} (11... Nf6 $11) 12. Bg2 $14 {[%emt 0:00:09]} Bg5 {[%emt 0:00:04]} 13. Bxc6+ {[%emt 0:16:59]} bxc6 {[%emt 0:00:09]} 14. Na4 {[%emt 0:08:26]} (14. Bxg5 hxg5 15. Nb3 Nf6 $11) 14... Kf7 {[%emt 0:19:44]} 15. Nc5 {[%emt 0:03:03]} Ne7 {[%emt 0:02:28]} ({Black should play} 15... Nf6 $14) 16. h4 {[%emt 0:03:51]} (16. Bxg5 $18 {has better winning chances.} hxg5 17. f3) 16... gxh3 {[%emt 0:01:27]} 17. f4 {[%emt 0:01:12]} Bf6 {[%emt 0:01:22]} 18. Rxh3 {[%emt 0:00:47]} Rag8 {[%emt 0:00:00]} 19. Rdh1 {[%emt 0:02:04]} Bc8 {[%emt 0:00:47]} 20. Nf3 {[%emt 0:02:33] White is more active. A dynamic duo of knights.} (20. Rxh6 Rxh6 21. Rxh6 Rxg3 22. Rxf6+ Kxf6 23. Nde4+ fxe4) (20. fxe5 $142 Bxe5 21. Bf4 (21. Bxh6 Bd6 $15) (21. Rxh6 Rxh6 22. Rxh6 Rxg3 $16) 21... Bxf4 22. gxf4) 20... e4 $16 {[%emt 0:01:02]} 21. Ne1 {[%emt 0:06:26]} (21. Ne5+ Bxe5 22. fxe5 f4 23. Bxf4 (23. e6+ Bxe6 24. Nxe6 fxe3 $11) 23... Bxh3 24. Rxh3 e3) 21... Rg6 {[%emt 0:03:17]} 22. Nc2 {[%emt 0:00:56]} Rd8 {[%emt 0:03:56]} 23. Bf2 {[%emt 0:00:20]} ({Don't play} 23. Rxh6 $6 Rxg3 24. Rh7+ Kf8 $11) ({White should try} 23. Nb3 $16) 23... Ng8 {[%emt 0:00:53]} 24. Na4 {[%emt 0:02:09]} a6 {[%emt 0:00:39]} 25. Rd1 {[%emt 0:02:10]} Rxd1+ {[%emt 0:01:45]} 26. Kxd1 {[%emt 0:00:35]} Be7 {[%emt 0:00:27]} 27. Bc5 {[%emt 0:02:57]} Bd8 {[%emt 0:00:18]} 28. Nb4 {[%emt 0:01:02]} Bf6 {[%emt 0:01:54]} 29. b3 {[%emt 0:00:42]} (29. Nxc6 $2 Bd7 30. Nb4 Bxa4+ $19) 29... Bg7 {[%emt 0:00:33]} 30. Ke1 {[%emt 0:00:06]} Re6 {[%emt 0:00:54]} 31. Nc2 {[%emt 0:00:42]} Nf6 {[%emt 0:00:54]} 32. Bd4 {[%emt 0:01:37]} ({Inferior is} 32. Nd4 Re8 $15) 32... Bf8 {[%emt 0:00:19]} 33. Be5 {[%emt 0:00:07]} Ng4 {[%emt 0:00:52]} 34. Bxc7 {[%emt 0:00:40]} c5 {[%emt 0:00:03]} 35. e3 {[%emt 0:03:13]} Bd7 {[%emt 0:02:50]} 36. Nc3 {[%emt 0:00:13]} Rc6 {[%emt 0:00:03]} 37. Ba5 {[%emt 0:00:11]} Rd6 {[%emt 0:01:35]} 38. Ke2 {[%emt 0:00:08]} Bg7 {[%emt 0:01:03][%cal Og4f2]} 39. Nb1 {[%emt 0:01:23]} (39. Nd5 $14) 39... Be8 $11 {[%emt 0:01:18]} 40. Rh1 {[%emt 0:00:23]} Ke6 {[%emt 0:01:20]} 41. Rd1 {[%emt 0:01:25]} Rxd1 {[%emt 0:01:07]} 42. Kxd1 {[%emt 0:00:01]} Nf2+ {[%emt 0:00:00]} 43. Ke2 {[%emt 0:00:56]} Nd3 {[%emt 0:00:05]} 44. Bc3 {[%emt 0:00:43]} Bh5+ {[%emt 0:00:11]} 45. Kf1 {[%emt 0:00:56]} Bf8 {[%emt 0:01:36]} 46. Bd2 {[%emt 0:00:14] Repels Nc1} Bd1 {[%emt 0:02:05]} 47. Ne1 {[%emt 0:00:21]} Nb4 {[%emt 0:00:18]} 48. Nc3 {[%emt 0:01:03]} Bg4 {[%emt 0:00:08]} 49. Bc1 {[%emt 0:00:54]} (49. a3 $14 Nc6 50. Nc2) 49... Bg7 {[%emt 0:02:19]} 50. Na4 {[%emt 0:00:01]} Kd6 {[%emt 0:00:04]} 51. Ba3 {[%emt 0:00:20]} Bd1 {[%emt 0:01:36]} 52. Ng2 {[%emt 0:00:30]} Nd3 {[%emt 0:00:38]} 53. Ne1 {[%emt 0:00:27] [#] Nxd3 is the strong threat.} (53. Nh4 $5 Bg4 $8 54. Ng6 $11) 53... Nb4 {[%emt 0:00:07]} 54. Bxb4 {[%emt 0:00:43]} cxb4 {[%emt 0:00:01][%mdl 4096] Endgame. KBB-KNN} 55. Ng2 {[%emt 0:00:09]} Bf6 {[%emt 0:01:24]} 56. Ke1 {[%emt 0:01:12]} Bf3 {[%emt 0:00:28]} 57. Nh4 {[%emt 0:00:10]} Bxh4 {[%emt 0:00:19]} 58. gxh4 {[%emt 0:00:05] KB-KN} Kc6 {[%emt 0:00:00]} 59. Kd2 {[%emt 0:01:13]} Bh5 {[%emt 0:00:36]} 60. Kc2 {[%emt 0:00:56]} Bf7 {[%emt 0:00:45]} 61. Kb2 {[%emt 0:00:58]} (61. a3 $5 a5 $8 (61... bxa3 $2 {perishes.} 62. Kb1 $18) 62. Kb1 $11) 61... Bh5 {[%emt 0:00:09]} 62. a3 {[%emt 0:00:38]} a5 {[%emt 0:00:01]} 63. Ka2 {[%emt 0:00:43]} Bf7 {[%emt 0:00:14]} (63... Bd1 $11) 64. Kb1 $14 {[%emt 0:00:31]} Bh5 {[%emt 0:00:05]} 65. Kb2 {[%emt 0:00:30]} (65. Nb2 $1 $14) 65... Bf7 {[%emt 0:00:06]} ({Better is} 65... Bd1 $11) 66. axb4 {[%emt 0:00:30]} (66. Ka2 $14) 66... axb4 $11 {[%emt 0:00:01] The position is equal.} 67. Ka2 {[%emt 0:00:32]} Bh5 {[%emt 0:00:09]} 68. Kb1 {[%emt 0:00:23]} Bf7 {[%emt 0:00:06]} 69. Kc2 {[%emt 0:00:04]} Bh5 {[%emt 0:00:43]} 70. Nc3 {[%emt 0:00:20]} bxc3 {[%emt 0:02:19]} 71. Kxc3 {[%emt 0:00:02] KB-KP} Bd1 {[%emt 0:00:55]} 72. b4 {[%emt 0:00:02]} Be2 {[%emt 0:00:04]} 73. Kd4 {[%emt 0:00:04]} h5 {[%emt 0:00:43]} 74. Ke5 {[%emt 0:01:48]} Bg4 {[%emt 0:00:03]} 75. Kd4 {[%emt 0:00:40]} Be2 {[%emt 0:00:03]} 76. Kc3 {[%emt 0:01:04]} Bf1 {[%emt 0:00:13] White really could win this.   Weighted Error Value: White=0.13 (very precise) /Black=0.13 (very precise) .  Mistake:       	White=7     	Black=4      Inaccurate:     	White=4     	Black=6      OK:         	White=27    	Black=27     Best:        	White=3     	Black=7} 1/2-1/2

[Event "Baku Open 2024"]
[Site "Baku"]
[Date "2024.07.05"]
[Round "7.9"]
[White "Aleksandrov, Aleksej"]
[Black "Pranav Vijay"]
[Result "1/2-1/2"]
[ECO "E57"]
[WhiteElo "2405"]
[BlackElo "2252"]
[Annotator "TA"]
[PlyCount "75"]
[EventDate "2024.06.29"]
[EventType "swiss"]
[EventCountry "AZE"]
[SourceTitle "playchess.com"]
[Source "ChessBase"]
[SourceQuality "1"]
[TimeControl "5400+30"]

{[%evp 24,75,31,12,19,-40,0,0,0,0,0,0,0,0,0,0,0,0,0,0,3,7,2,13,43,36,39,0,0,0,0,0,0,0,63,62,118,20,37,52,81,80,80,14,12,19,20,20,20,20,20,20,20,20]} 1. d4 {[%emt 0:00:02]} d5 {[%emt 0:06:16]} 2. c4 {[%emt 0:01:06]} e6 {[%emt 0:00:08]} 3. Nc3 {[%emt 0:00:16]} Nf6 {[%emt 0:00:08]} 4. Bg5 {[%emt 0:01:26]} dxc4 {[%emt 0:02:21]} 5. e3 {[%emt 0:02:31]} c5 {[%emt 0:00:34]} 6. Bxc4 {[%emt 0:01:00]} cxd4 {[%emt 0:01:28]} 7. exd4 {[%emt 0:00:29]} Be7 {[%emt 0:00:19]} 8. Nf3 {[%emt 0:00:32]} O-O {[%emt 0:01:16]} 9. O-O {[%emt 0:00:45]} Nc6 {[%emt 0:00:12]} 10. a3 {[%emt 0:00:16]} b6 {[%emt 0:12:02]} 11. Qd3 {[%emt 0:08:55]} Bb7 {[%emt 0:05:42]} 12. Rad1 {[%emt 0:00:34]} Rc8 {[%emt 0:04:52]} 13. Ba2 {[%emt 0:06:57]} Nd5 {[%emt 0:07:06][%cal Bf6d5,Bd5b4,Bb4a2][%mdl 32]} 14. Ne4 {[%emt 0:18:10] [#]} ({White should try} 14. Nxd5 $11 Bxg5 15. Ne3) 14... Ncb4 $1 {[%emt 0:18:30]} 15. axb4 {[%emt 0:15:08]} (15. Bxe7 {with more complications.} Nxd3 16. Bxd8 N5f4 17. Nd6) 15... Nxb4 {[%emt 0:00:01]} 16. Bxe7 {[%emt 0:00:05]} Qxe7 {[%emt 0:00:09]} 17. Qb1 {[%emt 0:00:11] And now Bb3 would win.} Bxe4 $1 {[%emt 0:01:23]} (17... Nxa2 $6 18. Neg5 g6 19. Qxa2 $18) 18. Qxe4 {[%emt 0:00:06]} Nxa2 {[%emt 0:00:06]} 19. d5 {[%emt 0:00:13][%cal Bd4d5,Bd5d6][%mdl 32]} a5 $1 {[%emt 0:07:55]} 20. d6 {[%emt 0:02:46]} Qd8 {[%emt 0:01:26]} 21. Ne5 {[%emt 0:07:01] d7 is the strong threat.} Nb4 {[%emt 0:00:24]} 22. f4 {[%emt 0:01:39] Strongly threatening f5.} g6 {[%emt 0:06:47]} 23. g4 $36 {[%emt 0:00:09][%mdl 2048] Threatens to win with f5. White fights for an advantage.} Qh4 {[%emt 0:06:21]} (23... Rc2 {keeps more tension.} 24. f5 Qh4 25. Qf4 Nd5) 24. Rd2 {[%emt 0:00:50][%mdl 1024] Wards off Rc2. White has compensation.} (24. d7 $2 Rc2 $19) 24... Rcd8 {[%emt 0:03:07]} 25. g5 {[%emt 0:02:10]} f6 {[%emt 0:02:18]} 26. Nc4 {[%emt 0:02:12]} Qg4+ {[%emt 0:06:15]} (26... fxg5 27. Qxe6+ (27. Nxb6 Qg4+ 28. Qg2 Rxf4 $17) 27... Kg7 28. Qe7+ (28. Nxb6 Rde8 $11) 28... Kg8 29. Qxg5 (29. Nxb6 Qh3 $14) (29. Ne5 Rde8 $11) 29... Qxg5+ 30. fxg5 Rxf1+ 31. Kxf1 $14) 27. Rg2 {[%emt 0:00:07]} Qf5 {[%emt 0:00:40]} 28. Qxf5 {[%emt 0:00:06]} gxf5 {[%emt 0:02:40]} (28... exf5 $11 29. Rd1 fxg5) 29. gxf6+ $14 {[%emt 0:00:06]} Kh8 {[%emt 0:00:47] [#]} (29... Kf7 $14) 30. Rg7 {[%emt 0:03:27]} ({And not} 30. Nxb6 Rxd6 31. Nc4 Rdd8 $15) (30. Ne5 $1 $16 {Hoping for d7.} Rxd6 31. Rg7 Rxf6 32. Rf7 Rg6+ 33. Nxg6+ hxg6 34. Rc1) 30... Nd5 {[%emt 0:02:14]} 31. Rb7 {[%emt 0:00:18]} Rxf6 {[%emt 0:00:34]} 32. Ne5 {[%emt 0:04:55] Repels Rg6+. White has more active pieces.} Rxd6 {[%emt 0:00:44] [#]} 33. Nf7+ {[%emt 0:00:12]} ({Better is} 33. Rc1 $1 $16 {[%cal Rc1c8] Intending Rc8+ and mate.} Kg8 (33... Nxf4 34. Rc8+) 34. Kf2) 33... Rxf7 $1 $11 {[%emt 0:00:03] The position is equal.} 34. Rxf7 {[%emt 0:00:04]} Kg8 {[%emt 0:00:11]} 35. Rb7 {[%emt 0:00:08]} Rc6 $1 {[%emt 0:00:04]} 36. Kf2 {[%emt 0:04:22] aiming for Rg1+.} Rc7 {[%emt 0:00:50]} 37. Rxc7 {[%emt 0:00:45]} Nxc7 {[%emt 0:00:01]} 38. Kf3 {[%emt 0:02:20] Weighted Error Value: White=0.12 (very precise) /Black=0.09 (flawless) .  Mistake:       	White=3     	Black=2      Inaccurate:     	White=1     	Black=3      OK:         	White=16    	Black=7      Best:        	White=1     	Black=3      Strong:       	---       	Black=4} 1/2-1/2